bitfinex/quotes_ETHUSD_20250923
["timestamp","ask_amount","ask_price","bid_price","bid_amount"]
[1758632549196,6.01672147,4201.6,4201.5,2.85620234]
[1758632549395,4.34572147,4201.6,4201.5,2.85620234]
[1758632549591,0.35572147,4201.6,4201.5,2.85620234]
[1758632549790,0.35585807,4201.6,4201.5,2.88000336]
[1758632549990,4.34585807,4201.6,4201.5,2.88000336]
[1758632550314,4.34585807,4201.6,4201.5,2.85620234]
[1758632550606,4.34585807,4201.6,4201.5,3.09170234]
[1758632551210,4.12353215,4201.6,4201.5,3.09170234]
[1758632552398,0.13353215,4201.6,4201.5,3.09170234]
[1758632552609,4.12353215,4201.6,4201.5,3.11550336]
[1758632552811,4.12353215,4201.6,4201.5,3.09170234]
[1758632553904,4.34573312,4201.6,4201.5,0.2395]
[1758632554220,4.3614744,4201.6,4201.5,3.09170234]
[1758632554383,4.3614744,4201.6,4201.5,0.7116]
[1758632554809,4.3614744,4201.6,4201.5,3.09170234]
[1758632555119,4.34573312,4201.6,4201.5,3.09170234]
[1758632556015,7.34573312,4201.6,4201.5,0.004]
[1758632556214,7.34573312,4201.6,4201.5,0.2395]
[1758632556589,7.34573312,4201.6,4201.5,0.7116]
[1758632556793,9.40373312,4201.6,4201.5,0.7116]
[1758632559005,20.84834705,4201.6,4201.5,0.004]
[1758632560310,20.84834705,4201.6,4201.5,0.2395]
[1758632561020,21.22149006,4201.6,4201.5,0.2395]
[1758632561723,21.22149006,4201.6,4201.5,0.004]
[1758632561918,21.22149006,4201.6,4201.5,0.2493]
[1758632562127,21.22149006,4201.6,4201.5,0.004]
[1758632562427,21.22120516,4201.6,4201.5,0.004]
[1758632564127,23.60125085,4201.6,4201.5,0.004]
[1758632565198,26.48398845,4201.6,4201.5,0.004]
[1758632565394,23.66404276,4201.6,4201.5,0.004]
[1758632565625,21.22120516,4201.6,4201.5,0.004]
[1758632566628,20.84806215,4201.6,4201.5,0.004]
[1758632567317,20.84726215,4201.6,4201.5,0.004]
[1758632568029,23.22730784,4201.6,4201.5,0.004]
[1758632568628,23.85010784,4201.6,4201.5,0.004]
[1758632568801,26.29294544,4201.6,4201.5,0.004]
[1758632573364,26.11004544,4201.6,4201.5,0.004]
[1758632574255,23.29009975,4201.6,4201.5,0.004]
[1758632574551,23.22730784,4201.6,4201.5,0.004]
[1758632576348,3.35464822,4201.6,4201.5,0.7038]
[1758632576724,9.40164822,4201.6,4201.5,0.7038]
[1758632577342,0.35464822,4201.6,4201.5,0.7038]
[1758632577656,7.34264822,4201.6,4201.5,0.7038]
[1758632577849,7.34264822,4201.6,4201.5,3.08390234]
[1758632580453,3.35494216,4201.6,4201.5,3.08390234]
[1758632580621,7.34294216,4201.6,4201.5,3.08390234]
[1758632580829,7.34410878,4201.6,4201.5,0.7038]
[1758632582554,7.34410878,4201.6,4201.5,0.2493]
[1758632582754,7.34410878,4201.6,4201.5,0.004]
[1758632582930,7.34410878,4201.6,4201.5,0.2493]
[1758632584536,19.69623284,4201.6,4201.5,0.004]
[1758632584832,22.69511698,4201.6,4201.5,0.004]
[1758632585452,13.16293861,4201.6,4201.5,0.004]
[1758632585649,6.17209292,4201.6,4201.5,0.004]
[1758632585855,19.30843369,4201.6,4201.5,0.004]
[1758632586059,19.30843369,4201.6,4201.5,0.2493]
[1758632586338,18.93528715,4201.6,4201.5,0.2493]
[1758632587179,18.93528715,4201.6,4201.5,0.004]
[1758632587536,3.35610878,4201.6,4201.5,3.08390234]
[1758632587973,4.34410878,4201.6,4201.5,3.08390234]
[1758632588354,0.35610878,4201.6,4201.5,3.20230234]
[1758632588668,0.13354079,4201.6,4201.5,3.20230234]
[1758632589067,0.001,4201.8,4201.7,2.37998905]
[1758632589270,0.13458443,4201.8,4201.7,2.37998905]
[1758632589471,0.001,4202.0,4201.9,2.37987577]
[1758632589683,0.001,4202.0,4201.9,3.19567452]
[1758632589884,0.001,4202.0,4201.9,22.38247452]
[1758632590076,0.001,4202.0,4201.9,22.45408389]
[1758632590411,0.001,4202.5,4202.3,3.17164923]
[1758632590561,1e-08,4202.8,4202.7,3.17142275]
[1758632590961,1e-08,4202.8,4202.7,3.88712275]
[1758632592128,1e-08,4202.8,4202.7,17.59512275]
[1758632592334,0.00020001,4202.9,4202.8,2.37936613]
[1758632592634,0.00020001,4202.9,4202.8,3.05586613]
[1758632598131,0.00020001,4202.9,4202.8,17.55586613]
[1758632599045,0.00020001,4202.9,4202.8,18.34786613]
[1758632599350,0.00020001,4202.9,4202.8,23.20786613]
[1758632600359,0.00020001,4202.9,4202.8,23.21186613]
[1758632600764,0.00020001,4202.9,4202.8,23.33026613]
[1758632601144,1e-08,4203.6,4203.5,3.1709699]
[1758632601343,1e-08,4203.6,4203.5,9.04075959]
[1758632601564,1e-08,4203.6,4203.5,9.6934699]
[1758632601774,1e-08,4203.6,4203.5,24.1934699]
[1758632602470,1e-08,4203.6,4203.5,24.60014309]
[1758632602672,1e-08,4203.6,4203.5,24.28883981]
[1758632603983,1e-08,4203.6,4203.5,22.82033981]
[1758632604282,1e-08,4203.6,4203.5,22.9692699]
[1758632604446,1e-08,4203.6,4203.5,23.4014699]
[1758632604980,1e-08,4203.6,4203.5,21.5414699]
[1758632605182,1e-08,4203.6,4203.5,20.8649699]
[1758632605485,1e-08,4203.6,4203.5,21.5414699]
[1758632605658,1e-08,4203.6,4203.5,17.5554699]
[1758632605859,1e-08,4203.6,4203.5,21.5404699]
[1758632606072,1e-08,4203.6,4203.5,21.1082699]
[1758632606284,1e-08,4203.6,4203.5,20.8639699]
[1758632607714,1e-08,4203.6,4203.5,16.8789699]
[1758632608503,1e-08,4203.6,4203.5,2.3789699]
[1758632608814,0.46950001,4203.6,4203.5,2.3789699]
[1758632609600,1e-08,4203.6,4203.5,2.3789699]
[1758632611315,1e-08,4203.6,4203.5,2.3573699]
[1758632612316,0.46950001,4203.6,4203.5,2.3573699]
[1758632612821,1e-08,4203.6,4203.5,0.1184]
[1758632613006,0.66814129,4203.6,4203.4,2.37902196]
[1758632613313,0.6524,4203.5,4203.4,2.37902196]
[1758632614121,0.6524,4203.5,4203.1,0.1184]
[1758632614332,0.1184,4203.3,4203.0,2.37920727]
[1758632614482,0.1184,4203.3,4202.8,2.38335527]
[1758632614483,0.14854225,4203.2,4203.1,2.3791963]
[1758632614696,0.80094225,4203.2,4203.1,2.3791963]
[1758632615100,0.61804225,4203.2,4203.1,2.3791963]
[1758632615313,0.61804225,4203.2,4203.0,2.37922055]
[1758632615511,0.78520097,4203.1,4202.8,0.004]
[1758632615834,0.78520097,4203.1,4202.8,2.38335824]
[1758632615835,0.37007225,4203.0,4202.8,2.38335824]
[1758632616134,4.99172405,4202.9,4202.8,0.004]
[1758632616310,7.99172405,4202.9,4202.8,0.004]
[1758632616508,9.08859748,4202.9,4202.8,0.004]
[1758632616740,11.467907,4202.9,4202.8,0.004]
[1758632617102,11.467107,4202.9,4202.8,0.004]
[1758632617410,9.08779748,4202.9,4202.8,0.004]
[1758632617806,11.467107,4202.9,4202.8,0.004]
[1758632618130,9.08779748,4202.9,4202.8,0.004]
[1758632618738,11.467107,4202.9,4202.8,0.004]
[1758632620200,9.08779748,4202.9,4202.8,0.004]
[1758632620430,11.14579748,4202.9,4202.8,0.004]
[1758632620604,13.525107,4202.9,4202.8,0.004]
[1758632620804,13.89817905,4202.9,4202.8,0.004]
[1758632621337,13.89837238,4202.9,4202.8,0.004]
[1758632625115,9.46206286,4202.9,4202.8,0.004]
[1758632625440,9.77078943,4202.9,4202.8,0.004]
[1758632625811,10.22358943,4202.9,4202.8,0.004]
[1758632626645,7.79251738,4202.9,4202.8,0.004]
[1758632626808,9.85151738,4202.9,4202.8,0.004]
[1758632627004,0.35371738,4202.9,4202.8,0.004]
[1758632627237,0.35371738,4202.9,4202.8,3.09416613]
[1758632627445,4.11800097,4202.9,4202.8,3.09416613]
[1758632627633,7.33971738,4202.9,4202.8,3.09416613]
[1758632628033,7.11800097,4202.9,4202.8,3.09416613]
[1758632628216,0.001,4203.2,4203.1,2.3791963]
[1758632628415,6.987,4203.2,4203.1,2.3791963]
[1758632628610,7.20834146,4203.2,4203.1,2.3791963]
[1758632628816,7.20834146,4203.2,4203.1,3.0899963]
[1758632629230,7.3411474,4203.2,4203.1,3.0899963]
[1758632629550,4.3411474,4203.2,4202.8,2.38336553]
[1758632629755,4.1054,4203.2,4203.1,2.3791963]
[1758632630050,4.45955937,4203.2,4203.1,2.3791963]
[1758632630267,4.45958911,4203.2,4203.1,2.3791963]
[1758632630557,4.45958911,4203.2,4202.9,3.09009207]
[1758632630721,0.13280976,4203.1,4202.9,3.09009207]
[1758632630922,0.13280976,4203.0,4202.9,2.62609207]
[1758632631742,0.13280976,4203.0,4202.8,2.38336363]
[1758632631922,9.64635104,4202.9,4202.8,0.004]
[1758632632123,10.03498161,4202.9,4202.8,0.004]
[1758632632655,9.85208161,4202.9,4202.8,0.004]
[1758632632954,10.03498161,4202.9,4202.8,0.004]
[1758632633151,9.85208161,4202.9,4202.8,0.004]
[1758632633466,12.29512822,4202.9,4202.8,0.004]
[1758632633630,9.39949062,4202.9,4202.8,0.004]
[1758632634152,9.85229062,4202.9,4202.8,0.004]
[1758632634856,12.41450014,4202.9,4202.8,0.004]
[1758632635157,3.35449062,4202.9,4202.8,0.004]
[1758632635359,9.4162319,4202.9,4202.8,0.004]
[1758632635537,9.40049062,4202.9,4202.8,0.004]
[1758632636359,12.02645276,4202.9,4202.8,0.004]
[1758632636560,14.40576228,4202.9,4202.8,0.004]
[1758632637269,12.02645276,4202.9,4202.8,0.004]
[1758632637455,11.03826214,4202.9,4202.8,0.004]
[1758632637660,11.39446542,4202.9,4202.8,0.004]
[1758632637871,14.22657494,4202.9,4202.8,0.004]
[1758632638754,25.84532546,4202.9,4202.8,0.004]
[1758632639542,25.66242546,4202.9,4202.8,0.004]
[1758632640345,23.28311594,4202.9,4202.8,0.004]
[1758632640674,25.66242546,4202.9,4202.8,0.004]
[1758632640854,25.66274548,4202.9,4202.8,0.004]
[1758632641774,25.84564548,4202.9,4202.8,0.004]
[1758632642275,25.84493757,4202.9,4202.8,0.004]
[1758632642674,25.84525135,4202.9,4202.8,0.004]
[1758632642871,25.84525135,4202.9,4202.3,0.004]
[1758632642872,2.37959261,4202.4,4202.3,0.004]
[1758632643048,18.6510237,4202.4,4202.3,0.004]
[1758632643254,12.26768981,4202.4,4202.3,0.004]
[1758632643450,17.83977969,4202.4,4202.3,0.2508]
[1758632643677,17.95817969,4202.4,4202.3,0.2508]
[1758632643864,11.91017969,4202.4,4202.3,0.004]
[1758632644067,20.95817969,4202.4,4202.3,3.09444923]
[1758632644380,9.52232917,4202.4,4202.3,3.09444923]
[1758632645484,9.52332917,4202.4,4202.3,3.09444923]
[1758632645688,9.52332917,4202.4,4202.3,0.7148]
[1758632645992,9.52332917,4202.4,4202.3,3.09444923]
[1758632646756,3.47432917,4202.4,4202.3,3.09444923]
[1758632647159,7.34492917,4202.4,4202.3,3.09444923]
[1758632647460,9.40464905,4202.4,4202.3,3.09444923]
[1758632647682,3.35664905,4202.4,4202.3,3.09444923]
[1758632647882,7.34564905,4202.4,4202.3,3.09444923]
[1758632648156,0.35664905,4202.4,4202.3,3.21284923]
[1758632648360,0.001,4202.9,4202.8,2.37936613]
[1758632648561,0.001,4203.4,4203.1,2.3791963]
[1758632648869,3.992,4203.4,4203.1,16.8791963]
[1758632649051,3.992,4203.4,4203.1,17.5899963]
[1758632650789,0.001,4203.4,4203.1,18.3819963]
[1758632652470,0.001,4204.1,4203.1,18.3819963]
[1758632652471,0.001,4204.1,4204.0,2.37868696]
[1758632652984,0.001,4204.1,4204.0,3.09728696]
[1758632655474,0.001,4204.1,4204.0,2.37868696]
[1758632656605,0.001,4204.1,4204.0,2.62578696]
[1758632656991,3.996,4204.1,4203.1,0.2471]
[1758632657194,4.4706,4204.1,4203.1,0.7186]
[1758632657397,4.4706,4204.1,4203.8,2.37876064]
[1758632657600,0.4746,4204.0,4203.8,2.37876064]
[1758632658107,0.6585,4203.9,4202.9,0.2471]
[1758632658285,0.01574128,4203.8,4203.3,2.49746633]
[1758632658485,0.1184,4203.7,4203.0,0.1184]
[1758632658691,0.67424128,4203.6,4203.2,2.37911274]
[1758632658886,4.6555,4203.5,4203.2,2.37911274]
[1758632659085,4.6555,4203.5,4203.0,0.1184]
[1758632659086,0.01574128,4203.4,4203.3,2.37906237]
[1758632659287,0.01574128,4203.4,4203.2,2.37913362]
[1758632659984,0.01574128,4203.4,4203.1,2.3791963]
[1758632660192,0.01574128,4203.4,4203.0,0.1184]
[1758632660517,0.01574128,4203.4,4203.2,2.37913796]
[1758632661181,0.01574128,4203.4,4203.1,2.3791963]
[1758632661514,0.01574128,4203.4,4203.0,0.1184]
[1758632661716,0.37296194,4203.5,4203.4,2.3790265]
[1758632662015,3.996,4203.3,4203.2,2.3791397]
[1758632662192,3.996,4203.3,4203.0,0.1184]
[1758632662193,4.12904094,4203.3,4203.0,0.1184]
[1758632662517,3.996,4203.3,4203.2,2.3791397]
[1758632662811,3.996,4203.3,4203.0,0.1184]
[1758632663217,3.996,4203.3,4203.2,2.3791397]
[1758632664215,3.996,4203.3,4203.0,0.1184]
[1758632664408,0.60766213,4203.2,4203.0,2.37924427]
[1758632664601,3.996,4203.3,4203.1,2.37916474]
[1758632664812,0.13306243,4203.2,4203.1,2.37916474]
[1758632665611,0.13306243,4203.2,4202.8,0.004]
[1758632665815,0.26722031,4203.1,4202.8,0.004]
[1758632666029,0.1184,4203.1,4202.9,2.37928764]
[1758632666313,3.996,4203.3,4203.1,2.3791963]
[1758632666314,2.058,4203.3,4203.1,2.3791963]
[1758632666495,4.12908945,4203.2,4203.1,2.3791963]
[1758632667190,4.12828945,4203.2,4203.1,2.3791963]
[1758632667621,4.14403073,4203.2,4203.1,2.3791963]
[1758632667946,4.1440486,4203.2,4203.1,2.3791963]
[1758632670616,4.12830732,4203.2,4203.1,2.3791963]
[1758632670941,3.9952,4203.2,4202.9,0.2471]
[1758632671136,0.1331651,4203.1,4202.9,2.62639495]
[1758632671330,2.19214128,4203.4,4203.0,2.37925291]
[1758632671528,3.995,4203.3,4203.0,2.62635291]
[1758632671732,3.995,4203.2,4203.1,3.0977963]
[1758632671932,4.12816507,4203.2,4203.1,3.0977963]
[1758632672134,3.995,4203.2,4203.1,3.0977963]
[1758632673538,4.1282157,4203.2,4203.1,3.0977963]
[1758632674241,0.1332157,4203.2,4203.1,3.0977963]
[1758632674442,0.1332157,4203.2,4203.1,3.2161963]
[1758632674746,3.995,4203.2,4203.1,3.2161963]
[1758632675257,4.12831193,4203.2,4203.1,3.2161963]
[1758632678152,4.12831193,4203.2,4203.1,2.7446963]
[1758632679337,4.12831193,4203.2,4203.1,3.2161963]
[1758632680161,4.12845364,4203.2,4203.1,3.2161963]
[1758632682373,4.12845364,4203.2,4203.1,2.4975963]
[1758632683391,4.56375364,4203.2,4202.8,2.38334717]
[1758632683572,0.35605424,4203.1,4203.0,2.37925291]
[1758632683944,5.44315923,4203.1,4202.8,0.004]
[1758632684154,14.42939566,4202.9,4202.8,0.004]
[1758632684462,18.8948499,4202.9,4202.8,0.004]
[1758632684668,8.08465424,4202.9,4202.8,0.004]
[1758632685048,7.90075424,4202.9,4202.8,0.004]
[1758632685449,8.08465424,4202.9,4202.8,0.004]
[1758632685646,10.40703973,4202.9,4202.8,0.004]
[1758632687089,10.40732592,4202.9,4202.8,0.004]
[1758632688589,5.79712592,4202.9,4202.8,0.004]
[1758632688779,11.84512592,4202.9,4202.8,0.004]
[1758632689090,12.28042592,4202.9,4202.8,0.004]
[1758632689396,12.46432592,4202.9,4202.8,0.004]
[1758632690469,12.28042592,4202.9,4202.8,0.004]
[1758632691397,12.46432592,4202.9,4202.8,0.004]
[1758632691760,12.83736916,4202.9,4202.8,0.004]
[1758632692166,15.21587868,4202.9,4202.8,0.004]
[1758632694367,12.83656916,4202.9,4202.8,0.004]
[1758632694767,12.65266916,4202.9,4202.8,0.004]
[1758632695182,15.03197868,4202.9,4202.8,0.004]
[1758632695382,15.21587868,4202.9,4202.8,0.004]
[1758632696402,14.84283544,4202.9,4202.8,0.004]
[1758632697803,12.46352592,4202.9,4202.8,0.004]
[1758632698168,12.27962592,4202.9,4202.8,0.004]
[1758632698699,21.37373839,4202.9,4202.8,0.004]
[1758632699011,11.84432592,4202.9,4202.8,0.004]
[1758632700318,2.37953599,4202.5,4202.4,0.004]
[1758632700614,17.66439005,4202.5,4202.4,0.004]
[1758632700800,18.02173737,4202.5,4202.4,0.004]
[1758632701597,18.45703737,4202.5,4202.4,0.004]
[1758632701981,8.4923249,4202.5,4202.4,0.004]
[1758632702181,18.02173737,4202.5,4202.4,0.004]
[1758632702875,18.45703737,4202.5,4202.4,0.004]
[1758632703504,18.45698774,4202.5,4202.4,0.004]
[1758632703679,18.02168774,4202.5,4202.4,0.004]
[1758632703879,0.7293794,4202.5,4202.4,3.07859261]
[1758632704097,4.3442908,4202.5,4202.4,3.07859261]
[1758632705811,13.87370327,4202.5,4202.4,2.38359261]
[1758632706033,16.87370327,4202.5,4202.4,3.07859261]
[1758632706431,16.87352045,4202.5,4202.4,3.07859261]
[1758632706945,3.35610798,4202.5,4202.4,3.38989589]
[1758632707110,7.34310798,4202.5,4202.4,3.07859261]
[1758632709030,7.34310798,4202.5,4202.4,2.38359261]
[1758632709408,7.34310798,4202.5,4202.4,2.63359261]
[1758632710042,7.34310798,4202.5,4202.4,3.07859261]
[1758632710410,7.34310798,4202.5,4202.4,2.75199261]
[1758632712104,3.35610798,4202.5,4202.4,3.21479261]
[1758632712307,7.34310798,4202.5,4202.4,3.21479261]
[1758632713328,4.34310798,4202.5,4202.4,3.21479261]
[1758632713725,0.35610798,4202.5,4202.4,3.21479261]
[1758632713924,4.34310798,4202.5,4202.4,3.21479261]
[1758632717268,4.12055701,4202.5,4202.4,3.21479261]
[1758632719181,4.12055701,4202.5,4202.4,2.75199261]
[1758632719338,4.12055701,4202.5,4202.4,3.09639261]
[1758632719972,0.13355701,4202.5,4202.4,3.09639261]
[1758632720176,0.001,4203.2,4202.7,2.37942275]
[1758632720407,0.001,4203.2,4203.1,2.3791963]
[1758632720774,0.001,4203.2,4203.1,3.0682963]
[1758632721580,3.988,4203.2,4203.1,2.3791963]
[1758632722705,0.001,4203.2,4203.1,3.0682963]
[1758632722912,3.988,4203.2,4203.1,3.09208826]
[1758632723082,3.988,4203.2,4203.1,3.0682963]
[1758632723602,3.988,4203.2,4203.1,2.6054963]
[1758632723811,3.988,4203.2,4203.1,2.3791963]
[1758632724105,3.988,4203.2,4203.1,2.6054963]
[1758632724306,13.51741247,4203.2,4202.8,14.5]
[1758632724506,9.52941247,4202.9,4202.8,16.87936613]
[1758632724927,13.51641247,4202.9,4202.8,2.37936613]
[1758632725089,13.95901247,4202.9,4202.8,2.37936613]
[1758632725411,3.0,4202.8,4202.6,2.37946038]
[1758632725580,13.51641247,4202.7,4202.6,2.37946038]
[1758632725783,13.95901247,4202.7,4202.6,2.37946038]
[1758632727612,13.95901247,4202.7,4202.4,0.004]
[1758632727906,3.45834128,4202.6,4202.4,0.004]
[1758632728124,6.987,4202.5,4202.4,0.004]
[1758632728283,7.4296,4202.5,4202.4,0.004]
[1758632728803,7.6135,4202.5,4202.4,0.004]
[1758632729310,7.95454954,4202.5,4202.4,0.004]
[1758632729804,7.32804954,4202.5,4202.4,0.004]
[1758632730105,7.77064954,4202.5,4202.4,0.004]
[1758632730582,7.95454954,4202.5,4202.4,0.004]
[1758632732105,8.08816193,4202.5,4202.4,0.004]
[1758632732296,8.58682139,4202.5,4202.4,0.004]
[1758632732692,8.95987797,4202.5,4202.4,0.004]
[1758632733918,8.82626558,4202.5,4202.4,0.004]
[1758632734098,8.95990958,4202.5,4202.4,0.004]
[1758632734718,8.60361604,4202.5,4202.4,0.004]
[1758632735067,8.95999361,4202.5,4202.4,0.004]
[1758632735201,7.83483415,4202.5,4202.4,0.004]
[1758632735602,8.27743415,4202.5,4202.4,0.004]
[1758632736099,8.27742435,4202.5,4202.4,0.004]
[1758632736499,10.84086034,4202.5,4202.4,0.004]
[1758632736739,13.11583396,4202.5,4202.4,0.004]
[1758632737043,13.11583396,4202.5,4202.0,0.004]
[1758632737044,2.37964923,4202.3,4202.0,0.004]
[1758632737248,12.52941247,4202.1,4202.0,0.004]
[1758632737463,18.93178024,4202.1,4202.0,0.004]
[1758632737606,21.33020826,4202.1,4202.0,0.004]
[1758632737919,21.33014561,4202.1,4202.0,0.004]
[1758632738124,23.8938081,4202.1,4202.0,0.004]
[1758632738914,23.7099081,4202.1,4202.0,0.004]
[1758632739139,23.8938081,4202.1,4202.0,0.004]
[1758632740437,24.26692379,4202.1,4202.0,0.004]
[1758632740744,21.8871613,4202.1,4202.0,0.004]
[1758632740945,21.7032613,4202.1,4202.0,0.004]
[1758632741116,24.08302379,4202.1,4202.0,0.004]
[1758632741307,24.26692379,4202.1,4202.0,0.004]
[1758632742027,24.26612379,4202.1,4202.0,0.004]
[1758632743553,0.1184,4202.0,4201.5,0.004]
[1758632743745,22.05882494,4201.6,4201.5,0.004]
[1758632743940,16.87271759,4201.6,4201.5,0.004]
[1758632744958,16.87238768,4201.6,4201.5,0.004]
[1758632745247,19.25243337,4201.6,4201.5,0.004]
[1758632745459,21.62926671,4201.6,4201.5,0.004]
[1758632745639,31.71572311,4201.6,4201.5,0.004]
[1758632745839,31.34257918,4201.6,4201.5,0.004]
[1758632746138,21.31697794,4201.6,4201.5,0.004]
[1758632746756,21.75017794,4201.6,4201.5,0.004]
[1758632747055,21.93407794,4201.6,4201.5,0.004]
[1758632748917,19.55403225,4201.6,4201.5,0.004]
[1758632749115,19.37013225,4201.6,4201.5,0.004]
[1758632749745,18.93693225,4201.6,4201.5,0.004]
[1758632750143,21.31697794,4201.6,4201.5,0.004]
[1758632750574,18.93693225,4201.6,4201.5,0.004]
[1758632751564,14.94993225,4201.6,4201.5,0.004]
[1758632751748,20.99693225,4201.6,4201.5,0.004]
[1758632752566,23.37697794,4201.6,4201.5,0.004]
[1758632753178,20.99693225,4201.6,4201.5,0.004]
[1758632753740,23.37697794,4201.6,4201.5,0.004]
[1758632754960,23.81017794,4201.6,4201.5,0.004]
[1758632755271,33.52349041,4201.6,4201.5,0.004]
[1758632756256,5.38010234,4201.5,4201.4,0.004]
[1758632756474,2.38021564,4201.3,4201.0,0.004]
[1758632756673,14.90974143,4201.1,4201.0,0.004]
[1758632756880,15.26571664,4201.1,4201.0,0.004]
[1758632757079,15.88281664,4201.1,4201.0,0.004]
[1758632758698,15.69879377,4201.1,4201.0,0.004]
[1758632758910,17.92388471,4201.1,4201.0,0.004]
[1758632759880,18.10778471,4201.1,4201.0,0.004]
[1758632760179,5.49878562,4201.0,4200.9,0.004]
[1758632760391,10.45973796,4201.0,4200.9,0.004]
[1758632760591,2.38052258,4200.8,4200.0,0.2492]
[1758632760899,3.0,4200.1,4200.0,0.2492]
[1758632761105,7.35959019,4200.1,4200.0,0.7075]
[1758632761311,7.34384891,4200.1,4200.0,0.7075]
[1758632761695,7.34384891,4200.1,4199.6,0.2492]
[1758632762026,0.37159019,4200.0,4199.7,3.08861144]
[1758632762169,3.0,4199.8,4199.6,2.38116842]
[1758632762368,4.12151529,4199.7,4199.6,2.38116842]
[1758632762602,4.12151529,4199.7,4199.4,2.49964929]
[1758632762781,0.13351529,4199.6,4199.5,2.38123095]
[1758632763605,0.13351529,4199.6,4199.5,3.08873095]
[1758632766885,0.13271529,4199.6,4199.5,3.08873095]
[1758632767616,3.988,4199.7,4199.6,2.38117915]
[1758632767789,0.37326728,4199.8,4199.7,2.38112246]
[1758632767985,3.988,4199.8,4199.7,3.08862246]
[1758632768392,3.988,4199.8,4199.7,17.58862246]
[1758632768888,3.988,4199.8,4199.7,0.2492]
[1758632769288,3.988,4199.8,4199.7,2.63032246]
[1758632769813,4.21056183,4199.8,4199.7,0.2492]
[1758632770006,4.21056183,4199.8,4199.7,2.63032246]
[1758632770318,4.21056183,4199.8,4199.4,0.3676]
[1758632770495,0.23831169,4199.7,4199.4,0.2492]
[1758632770700,4.21058088,4199.6,4199.4,0.2492]
[1758632770895,4.21058088,4199.6,4199.1,2.51985786]
[1758632770896,3.988,4199.6,4199.1,17.01985786]
[1758632771100,0.2225921,4199.5,4199.4,2.38128151]
[1758632771624,0.2225921,4199.5,4199.4,0.2314]
[1758632772529,3.2225921,4199.5,4199.1,0.1384]
[1758632772734,3.0,4199.3,4199.1,0.02]
[1758632772898,4.22633338,4199.2,4199.1,0.02]
[1758632773317,4.22633338,4199.2,4199.1,0.2514]
[1758632774133,4.2105921,4199.2,4199.1,2.63286269]
[1758632774331,0.2225921,4199.2,4199.1,3.09507731]
[1758632774513,4.2105921,4199.2,4199.1,3.07126269]
[1758632775635,3.988,4199.2,4199.1,3.07126269]
[1758632776362,3.0,4200.1,4199.6,2.38114427]
[1758632776530,3.0,4199.8,4199.6,0.2314]
[1758632776737,6.27055525,4199.9,4199.6,2.38114311]
[1758632776738,0.22255525,4199.7,4199.6,2.38114311]
[1758632777302,0.66065184,4201.3,4199.6,2.38114311]
[1758632777303,2.06,4200.3,4199.6,2.38114311]
[1758632777622,3.0,4200.1,4199.9,2.38100297]
[1758632777839,0.22254453,4200.0,4199.9,2.38100297]
[1758632778021,0.22254453,4200.0,4199.9,2.81940297]
[1758632778348,4.21054453,4200.0,4199.9,3.05080297]
[1758632778819,4.34408144,4200.0,4199.9,3.05080297]
[1758632779019,4.34408144,4200.0,4199.9,2.38100297]
[1758632779222,4.34408144,4200.0,4199.9,3.05080297]
[1758632781243,0.13353691,4200.0,4199.9,3.05080297]
[1758632781647,0.13453691,4200.0,4199.9,3.05080297]
[1758632781950,0.13453691,4200.0,4199.9,17.55080297]
[1758632782749,0.13453691,4200.0,4199.9,17.66920297]
[1758632783249,0.13453691,4200.0,4199.9,16.99940297]
[1758632783440,0.13453691,4200.0,4199.9,17.66920297]
[1758632784332,0.13453691,4200.0,4199.9,3.16920297]
[1758632784531,4.12253691,4200.0,4199.9,2.49940297]
[1758632784732,4.12253691,4200.0,4199.9,2.38100297]
[1758632785554,4.34540134,4200.0,4199.9,2.38100297]
[1758632785941,4.7186586,4200.0,4199.9,2.38100297]
[1758632786255,4.7186586,4200.0,4199.9,2.61240297]
[1758632787941,5.20236446,4200.0,4199.6,0.1224]
[1758632788249,0.79150134,4199.9,4199.6,0.1224]
[1758632788450,0.79150134,4199.9,4199.6,2.38513309]
[1758632788451,0.35640134,4199.8,4199.6,2.38513309]
[1758632788633,4.77974236,4199.7,4199.6,2.38513309]
[1758632788843,4.77974236,4199.7,4199.6,0.004]
[1758632789155,19.33099627,4199.7,4199.6,0.004]
[1758632789323,19.44939627,4199.7,4199.6,0.004]
[1758632789658,24.83051873,4199.7,4199.6,0.004]
[1758632790453,24.64661873,4199.7,4199.6,0.004]
[1758632790653,14.44910496,4199.2,4199.1,0.024]
[1758632790962,22.6200638,4199.2,4199.1,0.024]
[1758632791157,23.61246047,4199.2,4199.1,0.024]
[1758632791832,23.61166047,4199.2,4199.1,0.024]
[1758632792367,23.2382638,4199.2,4199.1,0.024]
[1758632793836,9.22465286,4199.2,4199.1,0.024]
[1758632794042,20.85765782,4199.2,4199.1,0.024]
[1758632794258,23.2390638,4199.2,4199.1,0.024]
[1758632795147,22.88242144,4199.2,4199.1,0.024]
[1758632795351,20.63459098,4199.2,4199.1,0.024]
[1758632795554,23.10504774,4199.2,4199.1,0.024]
[1758632795746,23.47842909,4199.2,4199.1,0.024]
[1758632795932,23.25580279,4199.2,4199.1,0.024]
[1758632798576,22.88242144,4199.2,4199.1,0.024]
[1758632799457,4.4449105,4199.2,4199.1,0.024]
[1758632799662,10.84999547,4199.2,4199.1,0.024]
[1758632799965,13.85040145,4199.2,4199.1,0.024]
[1758632800173,11.46899547,4199.2,4199.1,0.024]
[1758632800372,10.84999547,4199.2,4199.1,0.024]
[1758632800677,11.28509547,4199.2,4199.1,0.024]
[1758632801648,11.65846145,4199.2,4199.1,0.024]
[1758632801971,11.22336145,4199.2,4199.1,0.273]
[1758632802440,11.22336145,4199.2,4199.1,0.024]
[1758632802655,9.77845095,4199.2,4199.1,0.024]
[1758632802860,9.77845095,4199.2,4199.1,0.273]
[1758632803067,9.77845095,4199.2,4199.1,0.024]
[1758632803958,9.77845095,4199.2,4199.1,0.273]
[1758632804390,9.77822949,4199.2,4199.1,0.273]
[1758632805296,3.72922949,4199.2,4199.1,3.09676269]